bitfinex-derivatives/quotes_SOLF0:USTF0_20250820
["timestamp","ask_amount","ask_price","bid_price","bid_amount"]
[1755713644976,4.13689741,183.99,183.95,2.87]
[1755713645175,0.6674,184.02,183.95,2.87]
[1755713645373,4.13322547,184.01,183.95,2.87]
[1755713645572,7.14322547,184.0,183.85,5.35408399]
[1755713645776,4.13322547,183.99,183.86,2.87]
[1755713645978,4.13322547,183.98,183.86,2.87]
[1755713646174,4.13322547,183.97,183.86,2.87]
[1755713646375,4.13322547,183.96,183.86,2.87]
[1755713646575,3.01,184.0,183.86,2.87]
[1755713646773,4.1332995,183.99,183.86,2.87]
[1755713646971,4.1332995,183.98,183.86,2.87]
[1755713647171,4.1332995,183.97,183.86,2.87]
[1755713647374,3.01,184.0,183.86,2.87]
[1755713647580,4.13244989,183.99,183.86,2.87]
[1755713647778,4.13244989,183.98,183.86,2.87]
[1755713647982,4.13244989,183.97,183.86,2.87]
[1755713648181,3.01,184.0,183.86,2.87]
[1755713648377,4.13197707,183.99,183.91,5.4368]
[1755713648574,4.13197707,183.98,183.86,2.87]
[1755713648786,7.14197707,183.97,183.86,2.87]
[1755713648986,4.13197707,183.96,183.86,2.87]
[1755713649183,144.1074,184.02,183.76,261.28552346]
[1755713649184,9.48606106,183.95,183.82,2.87]
[1755713649378,7.14197707,183.94,183.84,5.439]
[1755713649581,4.13197707,183.93,183.82,2.87]
[1755713649882,5.438,183.88,183.83,5.4391]
[1755713650186,5.438,183.88,183.83,8.3091]
[1755713650581,5.4377,183.89,183.84,5.439]
[1755713650978,5.4377,183.89,183.84,2.87]
[1755713651174,5.4373,183.9,183.85,5.4386]
[1755713651380,8.4473,183.9,183.85,5.4386]
[1755713651576,3.01,183.9,183.84,8.3088]
[1755713651780,3.01,183.9,183.84,2.87]
[1755713652485,5.4374,183.9,183.84,2.87]
[1755713653185,5.4374,183.9,183.86,5.4383]
[1755713653388,3.01,183.9,183.84,2.87]
[1755713653687,3.01,183.9,183.83,5.4391]
[1755713653894,5.4383,183.87,183.83,5.4391]
[1755713655086,5.4385,183.86,183.8,2.87]
[1755713655294,3.01,183.87,183.8,2.87]
[1755713656385,5.439,183.85,183.81,5.4399]
[1755713656583,3.01,183.87,183.75,365.62]
[1755713656886,5.4398,183.82,183.76,2.87]
[1755713657183,3.01,183.87,183.76,2.87]
[1755713657388,4.13346139,183.86,183.77,5.4409]
[1755713657589,4.13346139,183.85,183.77,5.4409]
[1755713657893,5.44,183.81,183.77,5.4409]
[1755713658086,3.01,183.87,183.75,2.87]
[1755713658282,4.13666267,183.86,183.75,2.87]
[1755713658489,5.4397,183.82,183.75,2.87]
[1755713658686,5.4397,183.82,183.77,8.3109]
[1755713658885,5.4397,183.82,183.77,2.87]
[1755713659085,3.01,183.88,183.75,5.4415]
[1755713659287,3.01,183.86,183.73,2.87]
[1755713659491,5.4401,183.81,183.73,2.87]
[1755713659691,5.4401,183.81,183.76,5.4412]
[1755713659893,5.4401,183.81,183.76,2.87]
[1755713661587,5.4401,183.81,183.77,5.441]
[1755713662086,5.4403,183.8,183.77,5.441]
[1755713662294,3.01,183.81,183.77,5.441]
[1755713662591,8.4502,183.81,183.77,5.441]
[1755713663291,5.4403,183.8,183.77,5.441]
[1755713663496,8.4503,183.8,183.76,5.4413]
[1755713663892,8.4503,183.8,183.72,2.87]
[1755713664088,8.4503,183.8,183.75,5.4417]
[1755713664285,6.00219803,183.88,183.72,2.87]
[1755713664494,3.01,183.84,183.72,8.3124]
[1755713664690,3.01,183.82,183.72,2.87]
[1755713664890,5.4419,183.75,183.66,5.35408399]
[1755713665092,3.01,183.78,183.69,5.4434]
[1755713665295,4.13939837,183.77,183.69,5.4434]
[1755713665492,4.13939837,183.76,183.66,2.87]
[1755713665688,4.13939837,183.75,183.68,5.4437]
[1755713665888,9.58169837,183.74,183.66,2.87]
[1755713666093,0.03585994,183.73,183.66,2.87]
[1755713666289,0.03585994,183.73,183.68,5.4436]
[1755713666489,3.09585994,183.73,183.65,368.32]
[1755713666899,3.09585994,183.73,183.67,5.444]
[1755713667297,0.03585994,183.73,183.68,5.4436]
[1755713667494,4.21442695,183.72,183.68,8.3636]
[1755713667695,0.03585994,183.73,183.65,365.4]
[1755713667896,4.21402925,183.72,183.65,2.92]
[1755713668098,3.09585994,183.73,183.65,2.92]
[1755713668405,4.21420791,183.72,183.65,2.92]
[1755713668602,3.09585994,183.73,183.65,2.92]
[1755713668799,4.21241594,183.72,183.68,2.92]
[1755713668999,0.03585994,183.73,183.68,2.92]
[1755713669301,4.21263297,183.72,183.68,2.92]
[1755713669498,3.09585994,183.73,183.68,2.92]
[1755713669803,4.21061282,183.72,183.68,8.3637]
[1755713670003,3.09585994,183.73,183.68,8.3637]
[1755713670303,4.21079854,183.72,183.68,8.3637]
[1755713670502,3.09585994,183.73,183.68,8.3637]
[1755713670701,4.20863113,183.72,183.68,8.3637]
[1755713670901,3.09585994,183.73,183.68,8.3637]
[1755713671100,4.20863113,183.72,183.68,8.3637]
[1755713671303,3.09585994,183.73,183.68,8.3637]
[1755713671500,4.20655779,183.72,183.68,8.3637]
[1755713671700,3.09585994,183.73,183.68,8.3637]
[1755713672005,0.03585994,183.73,183.7,2.92]
[1755713672203,0.03585994,183.73,183.65,2.92]
[1755713672407,0.03585994,183.73,183.69,5.4434]
[1755713672794,0.03585994,183.73,183.65,2.92]
[1755713673397,0.03585994,183.73,183.69,5.4433]
[1755713673600,3.06,183.72,183.65,2.92]
[1755713674000,3.06,183.72,183.69,5.4435]
[1755713674401,0.03585994,183.73,183.65,2.92]
[1755713674994,0.03585994,183.73,183.7,5.4431]
[1755713676207,0.03585994,183.73,183.71,5.4429]
[1755713676408,0.03585994,183.73,183.69,2.92]
[1755713676798,0.03585994,183.73,183.7,5.443]
[1755713677202,3.06,183.72,183.65,2.92]
[1755713677800,8.5027,183.72,183.68,5.4437]
[1755713678002,5.4427,183.72,183.68,2.92]
[1755713678403,8.5027,183.72,183.68,8.3637]
[1755713678606,5.4429,183.71,183.68,5.4437]
[1755713679305,5.4429,183.71,183.67,5.4439]
[1755713679709,5.4429,183.71,183.67,2.92]
[1755713679909,5.4429,183.71,183.67,8.364]
[1755713680111,5.4433,183.7,183.67,2.92]
[1755713680406,3.06,183.71,183.64,0.9474286]
[1755713681405,5.4435,183.69,183.64,0.9474286]
[1755713681609,8.5035,183.69,183.65,5.4445]
[1755713681809,3.06,183.69,183.65,5.4445]
[1755713682008,8.5036,183.69,183.64,0.9474286]
[1755713682210,3.06,183.68,183.64,3.8674286]
[1755713682614,3.06,183.72,183.65,2.92]
[1755713682810,3.06,183.7,183.66,2.92]
[1755713683013,8.5035,183.7,183.66,2.92]
[1755713683209,5.4435,183.7,183.66,2.92]
[1755713683414,6.48359451,183.74,183.66,8.3641]
[1755713683610,5.4438,183.68,183.64,0.9474286]
[1755713683810,5.4438,183.68,183.64,3.8674286]
[1755713684119,5.4446,183.66,183.64,0.9474286]
[1755713684513,3.06,183.67,183.64,0.9474286]
[1755713685010,3.06,183.7,183.6,6.34359451]
[1755713685211,5.4449,183.65,183.61,0.94768661]
[1755713685415,3.06,183.7,183.61,0.94768661]
[1755713685717,5.4446,183.66,183.62,2.92]
[1755713685916,3.06,183.7,183.63,5.445]
[1755713686119,4.19457984,183.69,183.63,5.445]
[1755713686315,3.06,183.66,183.61,3.86768661]
[1755713686612,3.06,183.7,183.61,3.86768661]
[1755713686809,4.19519907,183.69,183.61,3.86768661]
[1755713687013,4.19519907,183.68,183.64,5.445]
[1755713687310,8.94101067,183.77,183.61,0.94768661]
[1755713687311,3.06,183.74,183.63,2.92]
[1755713687507,4.19791574,183.73,183.63,2.92]
[1755713687711,4.19791574,183.72,183.66,2.92]
[1755713687911,4.19791574,183.71,183.67,2.92]
[1755713688112,4.19791574,183.7,183.67,2.92]
[1755713688311,4.19791574,183.69,183.67,2.92]
[1755713688619,4.19791574,183.68,183.66,5.4444]
[1755713688818,3.06,183.74,183.63,2.92]
[1755713689019,3.06,183.72,183.63,2.92]
[1755713689219,4.20071442,183.71,183.63,2.92]
[1755713689420,5.4437,183.69,183.65,5.4447]
[1755713689716,4.20071442,183.68,183.66,2.92]
[1755713689913,4.20071442,183.67,183.66,8.3644]
[1755713690319,3.06,183.72,183.66,2.92]
[1755713690516,4.20948394,183.71,183.68,5.4438]
[1755713690714,4.20948394,183.7,183.69,2.92]
[1755713691114,4.20948394,183.7,183.69,8.3635]
[1755713691822,4.20948394,183.7,183.68,5.4437]
[1755713692115,4.20948394,183.69,183.65,6.34359451]
[1755713692321,4.20948394,183.68,183.62,3.42359451]
[1755713692524,4.20948394,183.67,183.66,2.92]
[1755713692917,6.00219803,183.75,183.72,5.4426]
[1755713693121,9.06219803,183.77,183.72,5.4426]
[1755713693320,11.44369803,183.76,183.72,5.4426]
[1755713693716,11.44379803,183.76,183.73,5.4422]
[1755713693918,5.4416,183.76,183.69,2.92]
[1755713694119,5.4416,183.76,183.72,5.4423]
[1755713694315,8.5016,183.76,183.72,5.4423]
[1755713694823,5.4418,183.75,183.72,5.4423]
[1755713696324,11.44399803,183.75,183.72,5.4423]
[1755713696921,14.27399803,183.75,183.72,5.4423]
[1755713697125,11.44399803,183.75,183.71,5.4428]
[1755713697326,6.00219803,183.75,183.69,6.34359451]
[1755713697720,6.00219803,183.75,183.72,5.4424]
[1755713697919,6.00219803,183.75,183.69,6.34359451]
[1755713698321,8.83219803,183.75,183.72,5.4425]
[1755713699020,2.83,183.75,183.72,5.4425]
[1755713699928,2.83,183.74,183.67,2.85]
[1755713700127,8.83219803,183.74,183.64,3.42359451]
[1755713700328,2.83,183.73,183.67,3.42359451]
[1755713700725,8.83219803,183.73,183.65,2.85]
[1755713700924,8.83219803,183.73,183.67,3.42359451]
[1755713701122,6.00219803,183.74,183.67,3.42359451]
[1755713701322,6.00219803,183.76,183.72,2.85]
[1755713701525,8.83219803,183.76,183.7,3.42359451]
[1755713701820,6.00219803,183.74,183.68,2.85]
[1755713702019,8.83219803,183.75,183.68,2.85]
[1755713702221,6.00219803,183.76,183.68,2.85]
[1755713702830,6.00219803,183.77,183.68,2.85]
[1755713703526,6.00219803,183.77,183.71,5.4426]
[1755713703926,6.00219803,183.77,183.68,2.85]
[1755713704123,6.00219803,183.77,183.72,5.4424]
[1755713704329,2.83,183.75,183.72,5.4424]
[1755713704528,2.83,183.75,183.73,5.4423]
[1755713704929,4.17292002,183.74,183.73,5.4423]
[1755713705334,4.17292002,183.74,183.71,5.4426]
[1755713705528,4.17292002,183.73,183.7,2.85]
[1755713705729,4.17292002,183.72,183.69,2.85]
[1755713705932,4.17292002,183.71,183.7,8.2932]
[1755713706336,8.83219803,183.79,183.76,5.4414]
[1755713706530,4.17431306,183.78,183.74,2.85]
[1755713706835,6.11575,183.82,183.75,2.85]
[1755713707031,2.83,183.81,183.77,5.4411]
[1755713707334,2.83,183.81,183.75,2.85]
[1755713707538,2.83,183.81,183.78,5.4406]
[1755713707734,2.83,183.81,183.75,2.85]
[1755713707938,2.83,183.81,183.75,8.2915]
[1755713708341,5.4409,183.78,183.71,3.42359451]
[1755713708536,2.83,183.78,183.72,5.4425]
[1755713708735,2.83,183.78,183.68,3.42359451]
[1755713709039,9.42579254,183.81,183.68,3.42359451]
[1755713709040,2.83,183.79,183.68,3.42359451]
[1755713709627,8.2724,183.73,183.66,2.85]
[1755713709933,8.2724,183.73,183.68,2.85]
[1755713710131,3.42359451,183.78,183.68,2.85]
[1755713710432,2.83,183.72,183.66,5.4443]
[1755713711040,5.4432,183.7,183.65,5.4446]
[1755713711337,2.83,183.74,183.64,0.94723519]
[1755713711535,142.88,183.81,183.64,0.94723519]
[1755713711536,5.4443,183.67,183.64,0.94723519]
[1755713711737,2.83,183.72,183.64,0.94723519]
[1755713711936,8.83219803,183.72,183.64,0.94723519]
[1755713712136,3.42359451,183.7,183.59,2.85]
[1755713712439,3.42359451,183.7,183.57,119.17851006]
[1755713712440,2.83,183.6,183.57,0.94773823]
[1755713712743,3.42359451,183.61,183.51,2.85]
[1755713713240,0.03818856,183.6,183.51,2.85]
[1755713713635,0.03818856,183.6,183.56,5.4473]
[1755713713831,0.03818856,183.6,183.56,2.85]
[1755713714034,0.03818856,183.6,183.52,6.27359451]
[1755713714234,5.445,183.64,183.57,5.4468]
[1755713714435,2.83,183.65,183.55,2.85]
[1755713715037,2.83,183.66,183.46,2.85]
[1755713715343,2.83,183.63,183.46,2.85]
[1755713715837,2.83,183.63,183.51,2.85]
[1755713716544,2.83,183.63,183.51,8.25063187]
[1755713716738,2.83,183.63,183.51,2.85]
[1755713716941,10.80126374,183.52,183.29,12.10690226]
[1755713717144,10.80126374,183.52,183.1,45.0776369]
[1755713717145,147.92,183.51,183.05,12.10690226]
[1755713717340,5.40063187,183.26,183.08,2.85]
[1755713717638,367.18386692,183.25,183.06,2.85]
[1755713717841,1.36386692,183.24,183.07,5.40063187]
[1755713718037,1.36386692,183.23,182.96,2.85]
[1755713718348,5.44086527,183.22,183.07,2.85]
[1755713718538,5.44086527,183.21,183.07,2.85]
[1755713718739,5.44086527,183.2,183.07,2.85]
[1755713719042,1.36386692,183.19,183.07,2.85]
[1755713719238,1.36386692,183.18,182.81,1944.739]
[1755713719437,5.4231903,183.17,182.99,5.40063187]
[1755713719638,2.83,183.19,183.01,5.40063187]
[1755713719838,2.83,183.19,182.87,152.16]
[1755713719839,5.42520142,183.18,182.87,152.16]
[1755713720134,5.42462621,183.17,183.0,5.40063187]
[1755713720338,2.83,183.19,183.04,5.40063187]
[1755713720537,365.82,183.28,183.03,5.40063187]
[1755713720538,157.66,183.23,183.03,5.40063187]
[1755713720738,5.36972509,183.22,183.07,5.40063187]
[1755713720941,1.36527042,183.21,182.96,62.0]
[1755713721142,1.36527042,183.22,183.06,5.40063187]
[1755713721344,1.36527042,183.22,183.07,2.85]
[1755713721546,1.36527042,183.22,183.08,5.40063187]
[1755713721745,8.23063187,183.23,183.07,2.85]
[1755713722048,5.40063187,183.21,183.07,2.85]
[1755713722239,2.83,183.22,183.07,2.85]
[1755713722635,5.40063187,183.26,183.11,2.85]
[1755713722636,2.83,183.26,183.11,2.85]
[1755713723234,2.83,183.26,183.16,5.4592]
[1755713723436,365.82,183.28,183.15,2.85]
[1755713723648,2.83,183.31,183.18,5.40063187]
[1755713723944,2.83,183.31,183.15,2.85]
[1755713724538,2.83,183.26,183.06,2.85]
[1755713724741,161.68,183.25,183.06,8.3121]
[1755713725047,2.83,183.22,183.06,2.85]
[1755713725249,2.83,183.22,183.1,5.461]
[1755713725443,2.83,183.22,183.06,2.85]
[1755713726346,8.71280009,183.23,183.06,8.3122]
[1755713726347,1.36528927,183.21,183.06,8.3122]
[1755713726543,2.86,183.19,183.06,8.3122]
[1755713726846,1.36528927,183.18,183.08,5.4616]
[1755713727051,1.36528927,183.17,183.06,2.85]
[1755713727249,1.36528927,183.16,183.06,2.85]
[1755713727448,2.86,183.19,183.06,2.85]
[1755713727449,1.36528927,183.15,183.06,2.85]
[1755713727647,1.36528927,183.14,183.06,2.85]
[1755713727848,1.36528927,183.13,183.08,5.4616]
[1755713728047,1.36528927,183.12,183.08,5.4616]
[1755713728249,1.36528927,183.11,183.08,5.4616]
[1755713728447,1.36528927,183.1,183.08,5.4616]
[1755713728643,2.86,183.19,183.08,3.09]
[1755713729042,2.99,183.23,183.08,3.09]
[1755713729849,2.99,183.23,183.08,8.71280009]
[1755713730152,2.99,183.28,183.17,3.09]
[1755713730649,2.99,183.34,183.17,3.09]
[1755713730841,2.99,183.34,183.25,5.4565]
[1755713731347,2.99,183.34,183.21,3.09]
[1755713731552,2.99,183.34,183.22,5.4573]
[1755713731852,2.99,183.34,183.21,3.09]
[1755713733051,2.99,183.34,183.25,5.4563]
[1755713733246,2.99,183.34,183.21,3.09]
[1755713733648,2.99,183.39,183.21,3.09]
[1755713733849,2.99,183.39,183.24,11.80280009]
[1755713734248,2.99,183.39,183.28,5.4557]
[1755713734444,2.99,183.39,183.24,11.80280009]
[1755713734849,2.99,183.39,183.24,3.09]
[1755713735963,2.99,183.39,183.3,5.455]
[1755713737962,2.99,183.39,183.28,3.09]
[1755713738363,2.99,183.39,183.33,5.4539]
[1755713738560,2.99,183.39,183.28,3.09]
[1755713738959,164.30633,183.44,183.28,3.09]
[1755713739259,3.68633,183.44,183.31,3.09]
[1755713739661,3.68633,183.44,183.34,5.4538]
[1755713740367,3.68633,183.44,183.35,5.4535]
[1755713740769,1.36330971,183.43,183.35,5.4535]
[1755713740973,1.36330971,183.42,183.35,5.4535]
[1755713741162,1.36330971,183.41,183.35,5.4535]
[1755713741362,1.36330971,183.4,183.35,8.5435]
[1755713741566,1.36330971,183.39,183.35,8.5435]
[1755713741763,1.36330971,183.43,183.35,8.5435]
[1755713741965,1.36334822,183.42,183.35,8.5435]
[1755713742162,1.36334822,183.41,183.37,3.09]
[1755713742465,3.68633,183.44,183.27,70.71280009]
[1755713742466,1.36334822,183.43,183.32,3.09]
[1755713742663,1.36296277,183.43,183.36,3.09]
[1755713743167,1.36296103,183.43,183.41,5.4518]
[1755713743368,0.69633,183.44,183.41,8.5418]
[1755713744063,0.69633,183.44,183.42,8.5415]
[1755713744369,0.69633,183.44,183.36,3.09]
[1755713744963,1.36271052,183.43,183.36,3.09]
[1755713745169,1.36271052,183.42,183.36,3.09]
[1755713745369,1.36271052,183.41,183.36,3.09]
[1755713745570,1.36271052,183.4,183.36,3.09]
[1755713745769,1.36271052,183.39,183.36,3.09]
[1755713746073,0.69633,183.44,183.36,3.09]
[1755713746268,1.36314901,183.43,183.36,3.09]
[1755713746471,1.36314901,183.42,183.36,3.09]
[1755713746674,1.36314901,183.41,183.36,8.5432]
[1755713746967,1.36314901,183.4,183.36,3.09]
[1755713747170,1.36314901,183.39,183.36,3.09]
[1755713747368,1.36314901,183.38,183.31,3.09]
[1755713747573,1.36314901,183.37,183.31,3.09]
[1755713747768,1.36314901,183.36,183.29,8.71280009]
[1755713747970,3.68633,183.44,183.33,3.09]
[1755713748272,1.36318533,183.43,183.33,3.09]
[1755713748473,1.36318533,183.42,183.33,3.09]
[1755713748773,1.36318533,183.41,183.35,5.4534]
[1755713749173,1.36318883,183.4,183.35,5.4534]
[1755713749373,1.36318883,183.39,183.35,5.4534]
[1755713749572,1.36314473,183.38,183.3,3.09]
[1755713749771,0.69633,183.44,183.3,3.09]
[1755713749973,1.36291399,183.43,183.3,3.09]
[1755713750171,1.36291399,183.42,183.3,3.09]
[1755713750372,1.36291399,183.41,183.3,3.09]
[1755713750677,1.36291399,183.4,183.31,3.09]
[1755713750875,1.36291399,183.39,183.31,3.09]
[1755713751072,1.36291399,183.38,183.34,5.4538]
[1755713751378,0.69633,183.44,183.31,3.09]
[1755713751379,1.36291399,183.37,183.31,3.09]
[1755713751578,1.36291399,183.36,183.31,3.09]
[1755713751878,1.36291399,183.38,183.31,3.09]
[1755713752081,1.36291399,183.37,183.3,5.4549]
[1755713752380,2.99,183.35,183.25,366.56]
[1755713752682,1.36291399,183.34,183.25,366.56]
[1755713752876,1.36291399,183.33,183.25,366.56]
[1755713753080,1.36291399,183.32,183.25,366.56]
[1755713753280,1.36291399,183.31,183.25,366.56]
[1755713753472,1.36291399,183.31,183.23,3.09]
[1755713753473,1.36291399,183.3,183.23,3.09]
[1755713753677,2.99,183.35,183.23,3.09]
[1755713753869,5.47944724,183.34,183.23,3.09]
[1755713754075,8.46944724,183.33,183.19,3.09]
[1755713754273,5.47944724,183.32,183.19,3.09]
[1755713754479,5.47944724,183.31,183.23,5.4572]
[1755713754679,5.47944724,183.3,183.19,3.09]
[1755713754876,8.47572458,183.29,183.19,3.09]
[1755713755083,1.36385142,183.28,183.19,3.09]
[1755713755381,2.99,183.26,183.16,5.459]
[1755713755577,2.99,183.26,183.15,525.4]
[1755713755578,5.4928795,183.25,183.15,525.4]
[1755713755774,8.4828795,183.24,183.14,3.09]
[1755713755981,5.4928795,183.23,183.09,3.04]
[1755713756181,5.4928795,183.22,183.09,3.04]
[1755713756382,4.12902808,183.21,183.15,5.4593]
[1755713756688,4.12902808,183.2,183.09,3.04]
[1755713756987,2.99,183.24,183.09,3.04]
[1755713757185,4.13601461,183.23,183.09,3.04]
[1755713757487,2.99,183.24,183.09,3.04]
[1755713757681,3.99545305,183.23,183.09,3.04]
[1755713757981,2.99,183.24,183.09,3.04]
[1755713758185,3.99545404,183.23,183.09,3.04]
[1755713758385,2.99,183.24,183.09,3.04]
[1755713758576,3.99871133,183.23,183.09,3.04]
[1755713758776,2.99,183.24,183.16,5.459]
[1755713758982,3.03,183.22,183.06,3.04]
[1755713759177,3.03,183.2,183.06,162.46]
[1755713759489,3.03,183.2,183.06,159.42]
[1755713759684,4.00309327,183.19,183.07,3.04]
[1755713759884,3.03,183.2,183.07,3.04]
[1755713760281,3.99398794,183.19,183.08,159.2]
[1755713760488,3.03,183.24,183.09,3.04]
[1755713760683,3.99336367,183.23,183.1,3.04]
[1755713760887,3.03,183.28,183.13,8.71280009]
[1755713761091,6.88145412,183.27,183.14,3.04]
[1755713761292,6.88145412,183.26,183.14,3.04]
[1755713761587,6.88145412,183.25,183.14,11.75280009]
[1755713761794,3.03,183.28,183.14,170.77280009]
[1755713762087,6.87512438,183.27,183.15,3.04]
[1755713762281,3.95046802,183.26,183.15,3.04]
[1755713762485,3.03,183.28,183.15,3.04]
[1755713762686,3.9517842,183.27,183.15,3.04]
[1755713762985,3.03,183.28,183.15,3.04]
[1755713763193,3.91674105,183.27,183.15,3.04]
[1755713763388,6.94674105,183.26,183.15,3.04]
[1755713763581,5.4551,183.3,183.2,5.4578]
[1755713763788,3.03,183.24,183.2,5.4578]
[1755713764291,3.03,183.29,183.21,5.4577]
[1755713764496,3.91651544,183.28,183.15,3.04]
[1755713764689,3.91651544,183.27,183.15,3.04]
[1755713764888,3.91651544,183.26,183.15,3.04]
[1755713765090,3.03,183.29,183.15,3.04]
[1755713765286,3.91738154,183.28,183.15,3.04]
[1755713765491,3.03,183.29,183.18,3.04]
[1755713765683,3.92006998,183.28,183.18,3.04]
[1755713765888,3.03,183.29,183.24,5.4566]
[1755713766081,3.92009885,183.28,183.24,5.4566]
[1755713766293,3.03,183.29,183.18,3.04]
[1755713766494,3.92157337,183.28,183.18,3.04]
[1755713766692,3.03,183.34,183.18,3.04]
[1755713766895,6.69340572,183.33,183.18,3.04]
[1755713767094,3.92161551,183.32,183.18,3.04]
[1755713767294,3.92161551,183.31,183.22,3.04]
[1755713767489,3.03,183.34,183.22,3.04]
[1755713767690,3.92510166,183.33,183.22,3.04]
[1755713767887,3.92510166,183.32,183.22,3.04]
[1755713768092,3.92510166,183.31,183.22,3.04]
[1755713768289,3.03,183.34,183.22,3.04]
[1755713768490,3.92555621,183.33,183.22,3.04]
[1755713768699,3.92555621,183.32,183.22,3.04]
[1755713768896,3.03,183.34,183.22,3.04]
[1755713769096,3.92537078,183.33,183.22,3.04]
[1755713769293,3.03,183.39,183.22,3.04]
[1755713769597,3.03,183.39,183.29,8.71280009]
[1755713769789,3.9260752,183.38,183.26,3.04]
[1755713769995,3.92639507,183.37,183.26,3.04]
[1755713770298,3.92639507,183.36,183.26,3.04]
[1755713770499,6.95639507,183.35,183.3,5.4549]
[1755713770698,3.03,183.35,183.26,3.04]
[1755713771900,3.93210814,183.34,183.26,5.456]
[1755713772099,3.93210814,183.33,183.26,5.456]
[1755713772300,3.93210814,183.32,183.21,160.72]
[1755713772604,3.03,183.3,183.26,5.456]
[1755713772803,3.03,183.41,183.24,3.04]
[1755713773105,3.03,183.39,183.24,3.04]
[1755713773301,3.93607004,183.38,183.24,3.04]
[1755713773505,3.93607004,183.37,183.24,3.04]
[1755713773699,3.93607004,183.36,183.24,3.04]
[1755713773899,3.93607004,183.35,183.24,3.04]
[1755713774099,3.03,183.39,183.32,5.4543]
[1755713774299,3.94268521,183.38,183.32,5.4543]
[1755713774501,3.03,183.36,183.24,3.04]
[1755713775312,3.03,183.43,183.29,8.71280009]
[1755713775505,3.94632224,183.42,183.3,3.04]
[1755713775704,3.03,183.43,183.3,3.04]
[1755713775705,3.94632224,183.41,183.38,5.4525]
[1755713776010,3.03,183.42,183.3,11.75280009]
[1755713776407,3.03,183.42,183.31,8.71280009]
[1755713777107,3.03,183.42,183.31,165.49280009]
[1755713777507,3.03,183.42,183.39,5.4522]
[1755713777702,3.03,183.42,183.31,165.49280009]
[1755713777906,3.03,183.47,183.32,3.04]
[1755713778107,3.03,183.45,183.32,3.04]
[1755713778712,3.03,183.45,183.31,8.71280009]
[1755713778913,3.03,183.43,183.27,168.09280009]
[1755713779114,3.03,183.41,183.27,168.09280009]
[1755713779413,3.03,183.39,183.27,3.04]
[1755713779615,3.03,183.37,183.23,8.71280009]
[1755713779806,3.03,183.37,183.24,3.04]
[1755713780306,3.03,183.37,183.32,5.4545]
[1755713780512,3.03,183.35,183.32,5.4545]
[1755713781013,3.03,183.35,183.31,5.4547]
[1755713781209,3.03,183.38,183.27,3.04]
[1755713781619,3.03,183.43,183.28,3.04]
[1755713781909,3.94684529,183.42,183.28,3.04]
[1755713782215,3.03,183.43,183.38,5.4525]
[1755713782416,3.03,183.42,183.32,3.04]
[1755713782806,3.03,183.42,183.38,5.4527]
[1755713783008,5.4504,183.46,183.38,5.4527]
[1755713783211,6.97744773,183.45,183.32,3.04]
[1755713783412,3.03,183.45,183.32,3.04]
[1755713783717,3.03,183.45,183.34,8.71280009]
[1755713784412,3.03,183.45,183.42,5.4513]
[1755713784913,3.03,183.45,183.36,3.04]
[1755713785515,3.03,183.45,183.4,5.4521]
[1755713785712,3.03,183.47,183.4,5.4521]